bitfinex-derivatives/quotes_ETHF0:USTF0_20250702
["timestamp","ask_amount","ask_price","bid_price","bid_amount"]
[1751473097625,45.819,2542.7,2542.0,5.1883]
[1751473097815,15.15524,2542.6,2542.1,0.78637]
[1751473098021,0.7863,2542.4,2542.0,2.8883]
[1751473098324,0.78627,2542.5,2542.0,3.6747]
[1751473098515,42.76503,2543.4,2542.3,0.78631]
[1751473098720,0.78617,2542.9,2542.4,0.7863]
[1751473099117,0.78614,2543.0,2542.4,3.6746]
[1751473099318,67.60453099,2543.3,2542.3,0.78632]
[1751473099518,14.369,2543.2,2542.7,0.78619]
[1751473099728,0.78605,2543.2,2542.6,0.78622]
[1751473099927,0.78605,2543.2,2542.1,1.96599]
[1751473099928,0.78613,2543.0,2542.0,1.96606]
[1751473100222,56.611,2543.3,2542.0,1.96607]
[1751473100525,14.37,2543.2,2542.4,1.96572]
[1751473100823,59.983,2543.1,2542.8,0.78615]
[1751473101023,59.983,2543.1,2542.3,2.8883]
[1751473101217,11.77965099,2543.0,2542.5,0.78626]
[1751473101522,40.8,2543.4,2542.4,1.96574]
[1751473101727,59.834,2543.3,2542.5,4.58584]
[1751473101932,2.4576,2543.3,2542.6,1.96555]
[1751473102125,56.616,2543.5,2542.8,1.96545]
[1751473102326,59.798,2543.4,2543.3,0.78602]
[1751473102728,59.798,2543.4,2543.3,3.67432]
[1751473102925,2.4576,2543.9,2543.3,2.8883]
[1751473103120,14.275,2544.1,2543.3,2.8883]
[1751473103325,14.275,2544.1,2544.0,0.78581]
[1751473103527,59.73,2544.1,2543.4,4.58519]
[1751473103723,59.73,2544.1,2543.4,5.5085]
[1751473104032,0.78588,2543.8,2543.4,2.8883]
[1751473104231,45.414,2543.7,2543.6,0.78591]
[1751473104427,45.414,2543.7,2543.5,0.78594]
[1751473104622,45.414,2543.7,2543.4,2.8883]
[1751473104828,40.8,2544.2,2543.4,2.8883]
[1751473105028,0.78581,2544.0,2543.4,3.67427]
[1751473105223,2.6326,2543.9,2543.4,2.8883]
[1751473105532,0.78603,2543.3,2542.8,0.78615]
[1751473105832,45.342,2543.2,2542.8,0.78617]
[1751473106031,45.342,2543.2,2542.8,2.8883]
[1751473106221,45.342,2543.2,2541.9,4.4537]
[1751473106222,2.6326,2543.1,2541.9,4.4537]
[1751473106425,0.78619,2542.8,2542.3,0.78631]
[1751473106629,45.33,2542.7,2542.6,0.78624]
[1751473106824,45.291,2542.7,2542.4,2.4876]
[1751473107131,0.78626,2542.6,2542.3,2.8883]
[1751473107329,45.291,2542.7,2542.3,3.67462]
[1751473107531,45.291,2542.7,2542.3,2.8883]
[1751473107532,45.286,2542.6,2542.3,2.8883]
[1751473108031,47.7355,2542.6,2542.3,3.67462]
[1751473108233,45.286,2542.6,2542.5,0.78627]
[1751473108428,14.274,2543.1,2542.8,0.78617]
[1751473108634,2.4495,2543.6,2542.8,2.8883]
[1751473108828,45.229,2543.5,2542.9,2.4234]
[1751473109035,45.229,2543.5,2543.1,0.78607]
[1751473109237,47.6785,2543.5,2543.0,0.78609]
[1751473109432,59.503,2543.4,2542.9,5.3117]
[1751473109932,2.4495,2543.5,2543.1,0.78606]
[1751473110133,59.503,2543.4,2543.2,0.78604]
[1751473110438,59.503,2543.4,2543.1,0.78607]
[1751473110637,59.503,2543.4,2542.9,5.3117]
[1751473110833,0.78598,2543.5,2543.0,0.78609]
[1751473111038,0.78601,2543.4,2542.9,2.8883]
[1751473111233,0.78601,2543.4,2543.0,0.7861]
[1751473111433,0.78598,2543.5,2543.0,0.7861]
[1751473111636,13.52153099,2543.6,2542.7,2.6164]
[1751473111835,0.78609,2543.1,2542.7,3.6745]
[1751473112035,45.228,2543.0,2542.7,2.8883]
[1751473112239,45.228,2543.0,2542.7,3.6745]
[1751473112432,45.228,2543.0,2542.9,0.78615]
[1751473112640,62.029,2543.0,2542.1,1.96598]
[1751473112833,45.226,2542.9,2542.3,1.96582]
[1751473113038,45.225,2542.9,2542.8,0.78615]
[1751473113241,45.225,2542.9,2542.8,2.8883]
[1751473113439,46.01117,2542.9,2542.5,0.78626]
[1751473113939,0.78608,2543.2,2542.5,2.8883]
[1751473114130,1.96486,2543.6,2542.9,0.78614]
[1751473114333,61.9904,2543.5,2542.6,4.42936]
[1751473114532,0.78606,2543.2,2542.6,5.3521]
[1751473114737,46.01009,2543.1,2542.7,0.78621]
[1751473114942,45.224,2543.1,2542.8,0.78616]
[1751473115141,45.224,2543.1,2542.8,0.78617]
[1751473115436,45.224,2543.1,2542.8,2.8883]
[1751473115939,45.223,2543.0,2542.9,0.78615]
[1751473116134,0.786,2543.4,2542.9,2.4638]
[1751473116331,2.4924,2543.5,2543.2,0.78604]
[1751473116536,0.7863,2542.5,2541.8,3.45520116]
[1751473116742,0.7863,2542.5,2542.2,6.30616]
[1751473116941,64.62532282,2543.0,2542.2,7.48569]
[1751473116942,0.78615,2542.9,2542.2,7.48569]
[1751473117142,60.28118,2542.8,2542.4,0.78628]
[1751473117441,59.495,2542.8,2542.5,0.78627]
[1751473117643,60.28118,2542.8,2542.4,3.67458]
[1751473117836,59.495,2542.8,2542.5,0.78626]
[1751473118043,59.495,2542.8,2542.6,0.78623]
[1751473118241,59.495,2542.8,2542.5,0.78625]
[1751473118441,60.28118,2542.8,2542.5,0.78625]
[1751473118643,62.1102,2542.8,2542.5,3.67455]
[1751473118841,62.1102,2542.8,2542.5,2.8883]
[1751473119143,62.1102,2542.8,2542.5,3.67455]
[1751473119343,2.6152,2542.8,2542.5,2.8883]
[1751473119545,56.612,2543.0,2542.5,4.85392]
[1751473119741,101.83,2543.0,2542.5,4.85392]
[1751473120141,101.83,2543.0,2542.9,0.78615]
[1751473120647,101.828,2543.0,2542.9,3.67445]
[1751473120844,101.827,2543.0,2542.9,3.67445]
[1751473121348,101.827,2543.0,2542.3,1.96579]
[1751473121541,101.827,2543.0,2542.5,1.96568]
[1751473121846,101.827,2543.0,2542.6,0.78623]
[1751473122045,2.6668,2542.9,2542.8,0.78618]
[1751473122240,45.212,2542.9,2542.8,0.78618]
[1751473122546,45.99816,2542.9,2542.3,1.96584]
[1751473122746,2.4191,2542.8,2542.3,4.85412]
[1751473122946,3.2053,2542.8,2542.5,0.78626]
[1751473123144,2.4191,2542.8,2542.3,2.8883]
[1751473123347,2.4191,2542.8,2542.6,0.78622]
[1751473123638,56.612,2543.0,2542.9,0.78615]
[1751473123842,101.82,2543.0,2542.9,0.78615]
[1751473124041,101.82,2543.0,2542.9,3.67445]
[1751473125246,56.612,2543.0,2542.9,3.67445]
[1751473125547,14.275,2543.4,2543.3,0.786]
[1751473125742,59.478,2543.4,2543.3,0.786]
[1751473125941,60.264,2543.4,2543.2,0.78603]
[1751473126342,60.264,2543.4,2543.2,3.67435]
[1751473126543,2.4191,2543.6,2543.5,0.78596]
[1751473126741,56.616,2544.0,2543.8,0.78584]
[1751473126946,45.199,2543.9,2543.8,3.67417]
[1751473127146,45.199,2543.9,2543.8,2.8883]
[1751473127344,70.891,2544.0,2543.8,2.8883]
[1751473127544,70.891,2544.0,2543.9,0.78584]
[1751473127742,2.5152,2544.4,2543.9,2.8883]
[1751473127943,3.09925715,2545.2,2544.3,8.01332282]
[1751473128244,45.192,2545.1,2545.0,0.78547]
[1751473128641,56.614,2545.3,2544.6,12.62952282]
[1751473128847,56.614,2545.3,2545.2,0.78544]
[1751473129146,101.802,2545.3,2545.2,0.78544]
[1751473129344,101.802,2545.3,2544.4,1.96416]
[1751473129545,45.97144,2545.2,2544.8,0.78553]
[1751473129739,45.97144,2545.2,2543.9,6.7831423]
[1751473129740,47.9227,2545.2,2544.1,1.48900116]
[1751473130043,8.01332282,2545.0,2544.1,1.48900116]
[1751473130248,0.78559,2544.7,2544.4,0.78567]
[1751473130547,45.184,2544.6,2544.4,0.78567]
[1751473130946,56.614,2545.3,2544.4,5.0]
[1751473131147,0.78547,2545.1,2544.9,0.78551]
[1751473131339,45.95251,2545.0,2544.5,2.6889]
[1751473131545,45.166,2545.0,2544.8,0.78555]
[1751473132045,0.78548,2545.1,2544.8,0.78555]
[1751473132046,45.164,2545.1,2545.0,0.7855]
[1751473132249,56.614,2545.3,2545.0,5.0]
[1751473132443,45.162,2545.2,2545.1,3.36534]
[1751473132640,56.614,2545.3,2544.5,9.97741282]
[1751473132848,56.614,2545.3,2544.5,1.96414]
[1751473133048,45.16,2545.2,2544.6,12.55724282]
[1751473133448,59.0242,2546.1,2544.8,8.01332282]
[1751473133645,14.128,2545.8,2545.2,1.9636]
[1751473133853,57.37217,2546.1,2545.9,0.78521]
[1751473134147,0.78527,2545.8,2545.3,2.5799]
[1751473134339,45.147,2546.0,2545.7,0.78527]
[1751473134340,0.78524,2545.9,2545.7,0.78527]
[1751473134545,45.93221,2546.0,2545.8,0.78525]
[1751473134741,0.78511,2546.3,2545.6,1.96321]
[1751473134941,0.78508,2546.4,2546.2,0.78512]
[1751473135148,45.143,2546.4,2546.3,0.78509]
[1751473135348,45.143,2546.4,2545.9,1.96306]
[1751473135349,56.587,2546.9,2545.9,1.96306]
[1751473135546,0.78503,2546.6,2546.4,0.78504]
[1751473135747,45.139,2546.5,2546.0,2.6257]
[1751473136147,0.78505,2546.5,2546.3,0.78508]
[1751473136349,55.11396282,2546.5,2545.8,0.78524]
[1751473136549,0.7852,2546.0,2545.8,0.78523]
[1751473136744,1.96232,2546.9,2545.8,5.0]
[1751473136952,45.121,2547.1,2546.4,8.01332282]
[1751473137151,0.7849,2547.0,2546.2,1.96281]
[1751473137349,45.119,2547.1,2546.9,0.78489]
[1751473137551,14.124,2547.4,2547.0,0.78488]
[1751473137851,60.02576,2547.4,2547.2,0.7848]
[1751473138049,2.6493,2547.7,2546.7,10.60762282]
[1751473138247,14.124,2548.3,2547.0,8.01332282]
[1751473138448,1.96162,2547.8,2546.5,2.4726]
[1751473138648,47.7623,2547.7,2546.6,1.96252]
[1751473138848,61.8863,2547.7,2546.7,2.5943]
[1751473139050,8.01332282,2547.6,2546.5,2.4726]
[1751473139251,8.01332282,2547.0,2546.0,2.5943]
[1751473139449,0.78498,2546.7,2546.4,0.78506]
[1751473139748,2.6493,2546.6,2546.0,2.5943]
[1751473139949,45.093,2546.5,2545.4,2.4726]
[1751473140147,2.6493,2546.4,2545.5,2.5943]
[1751473140348,0.7852,2546.0,2545.6,0.78529]
[1751473140547,0.7852,2546.0,2545.3,8.01332282]
[1751473140548,45.8732,2546.0,2545.3,0.7854]
[1751473140748,45.086,2546.1,2545.3,8.01332282]
[1751473141048,14.119,2547.4,2546.7,1.96242]
[1751473141248,16.7923,2547.6,2546.2,13.22312282]
[1751473141553,2.6733,2547.3,2546.7,1.96243]
[1751473141749,45.083,2547.2,2546.8,1.96235]
[1751473141950,45.083,2547.2,2546.5,4.66448]
[1751473142154,45.083,2547.2,2546.9,0.7849]
[1751473142455,2.6733,2547.1,2546.5,4.66448]
[1751473142655,45.083,2547.2,2547.1,0.78485]
[1751473143151,50.083,2547.2,2546.2,2.5079]
[1751473143354,8.01332282,2547.0,2546.2,0.7851]
[1751473143554,8.01332282,2547.0,2546.2,0.78512]
[1751473143555,16.7903,2546.9,2546.2,0.78512]
[1751473143749,16.7903,2546.9,2545.7,4.66506]
[1751473143750,0.78508,2546.4,2545.7,2.7019]
[1751473143955,0.78514,2546.2,2545.4,2.5079]
[1751473144160,45.064,2546.5,2545.4,2.5079]
[1751473144161,2.585,2546.1,2545.4,2.5079]
[1751473144456,0.78519,2546.0,2545.2,4.60695]
[1751473144652,56.543,2546.8,2544.4,3.92834]
[1751473144653,0.78526,2545.8,2544.9,1.96382]
[1751473144857,2.585,2545.7,2545.5,0.78533]
[1751473145053,2.6193,2546.2,2545.2,1.9636]
[1751473145256,59.173,2546.1,2545.1,2.6434]
[1751473145456,61.758,2546.1,2544.7,8.01332282]
[1751473145659,0.78527,2545.8,2545.5,0.78533]
[1751473145950,0.78527,2545.8,2545.0,1.96375]
[1751473145951,2.585,2545.7,2545.6,0.78531]
[1751473146153,47.636,2545.7,2545.6,0.78531]
[1751473146349,1.96244,2546.7,2545.0,1.96375]
[1751473146552,0.78522,2545.9,2545.6,0.7853]
[1751473146748,0.78526,2545.8,2545.5,0.78533]
[1751473146955,0.78533,2545.6,2545.3,0.7854]
[1751473147148,2.6115,2546.2,2544.7,1.96394]
[1751473147353,61.7735,2546.2,2545.0,10.99524237]
[1751473147553,61.7735,2546.2,2545.7,0.78526]
[1751473147554,0.7852,2546.0,2545.7,0.78526]
[1751473147754,2.5481,2545.9,2545.8,0.78525]
[1751473147958,59.162,2546.2,2545.8,0.78525]
[1751473148255,2.5481,2546.1,2544.7,1.96393]
[1751473148448,2.5481,2546.1,2544.3,18.04544]
[1751473148449,13.54334237,2546.1,2544.5,1.96411]
[1751473148653,0.7853,2545.7,2545.3,0.78538]
[1751473148848,2.5481,2545.6,2545.3,0.78539]
[1751473149052,2.5481,2545.6,2545.5,0.78534]
[1751473149562,56.546,2545.9,2545.8,0.78525]
[1751473149755,16.6651,2546.3,2546.1,0.78514]
[1751473149955,16.6651,2546.3,2546.2,0.78513]
[1751473150350,16.6651,2546.3,2545.2,3.92713]
[1751473150553,16.6651,2546.3,2544.6,1.96404]
[1751473150858,10.99524237,2544.7,2543.9,1.48900116]
[1751473151051,125.65911,2544.6,2543.7,1.48900116]
[1751473151253,123.695,2544.6,2543.7,0.78589]
[1751473151453,123.695,2544.6,2543.1,2.7194]
[1751473151454,10.99524237,2544.3,2543.1,2.7194]
[1751473151752,1.96469,2543.8,2542.9,0.78614]
[1751473151950,16.717,2543.7,2543.3,0.78601]
[1751473152155,14.117,2543.6,2543.2,0.78604]
[1751473152349,2.6,2543.5,2542.8,2.7194]
[1751473152758,3.38597,2543.5,2543.0,0.78609]
[1751473153056,59.138,2544.0,2543.6,0.78591]
[1751473153250,0.78585,2543.9,2543.5,0.78595]
[1751473153459,2.6519,2543.9,2543.6,0.78592]
[1751473153655,59.138,2544.0,2543.3,1.96501]
[1751473153855,59.92069,2544.4,2543.5,1.96491]
[1751473154050,2.6519,2544.3,2543.5,1.96491]
[1751473154256,2.6519,2544.3,2544.1,0.78575]
[1751473154562,2.6519,2544.3,2544.2,0.78574]
[1751473154856,56.544,2544.6,2544.3,0.78568]
[1751473155060,56.544,2544.6,2544.5,0.78565]
[1751473155466,56.544,2544.6,2543.8,4.53658]
[1751473155654,59.1959,2544.6,2544.5,0.78565]
[1751473156062,59.1959,2544.6,2543.9,1.9646]
[1751473156260,59.1959,2544.6,2544.4,0.78566]
[1751473156461,0.78566,2544.5,2543.8,2.5719]
[1751473156663,2.4994,2544.4,2544.2,0.78573]
[1751473157053,2.4994,2544.4,2544.3,0.78571]
[1751473157257,115.685,2544.6,2544.4,0.78567]
[1751473157460,101.563,2544.6,2544.5,0.78565]
[1751473157660,101.563,2544.6,2544.4,0.78567]
[1751473157859,104.0624,2544.6,2544.4,0.78567]
[1751473158067,104.0624,2544.6,2544.5,0.78565]
[1751473158258,59.0434,2544.6,2544.5,0.78565]
[1751473158466,59.82904,2544.6,2544.3,0.78569]
[1751473158666,0.78567,2544.5,2544.2,0.78573]
[1751473158874,2.4994,2544.4,2544.2,0.78573]
[1751473159263,7.4994,2544.4,2543.3,1.96506]
[1751473159468,45.016,2544.3,2543.2,5.3524]
[1751473159670,2.5746,2544.2,2543.4,1.96499]
[1751473159869,45.014,2544.1,2544.0,0.78579]
[1751473160068,2.5746,2544.2,2544.1,0.78578]
[1751473160365,57.32964,2544.6,2543.8,1.96468]
[1751473160366,56.544,2544.6,2543.8,1.96468]
[1751473160572,45.012,2544.3,2544.2,0.78572]
[1751473160762,16.6986,2544.5,2544.4,0.78568]
[1751473160971,18.56984237,2544.5,2542.6,1.48900116]
[1751473161269,10.99524237,2543.8,2542.5,1.48900116]
[1751473161472,0.78608,2543.2,2542.6,2.27523116]
[1751473161671,0.78614,2543.0,2542.7,0.7862]
[1751473161868,0.78614,2543.0,2542.7,0.78619]
[1751473161869,2.5746,2542.9,2542.7,0.78619]
[1751473162071,0.78604,2543.3,2543.0,0.78611]
[1751473162272,47.6992,2543.4,2542.5,2.6544]
[1751473162673,0.78611,2543.1,2542.8,0.78617]
[1751473162874,0.78611,2543.1,2542.8,0.78615]
[1751473162875,0.7861,2543.1,2542.8,0.78615]
[1751473163176,48.4852,2543.4,2542.7,1.96545]
[1751473163367,0.78605,2543.2,2542.6,1.96559]
[1751473163575,0.78609,2543.1,2542.5,2.6544]
[1751473163776,0.78612,2543.0,2542.8,0.78618]
[1751473163975,3.47532,2543.0,2542.7,0.7862]
[1751473164175,0.78615,2542.9,2542.6,0.78622]
[1751473164370,0.78615,2542.9,2542.7,0.78621]
[1751473164371,2.6892,2542.9,2542.7,0.78621]
[1751473164575,2.6892,2542.9,2542.8,0.78618]
[1751473164768,2.6133,2543.7,2542.6,1.9656]
[1751473164970,2.6892,2543.4,2542.5,4.62006]
[1751473165167,2.6892,2543.4,2542.9,0.78614]
[1751473165371,2.6892,2543.4,2542.7,0.78619]
[1751473165573,2.6892,2543.4,2542.0,2.23370085]
[1751473165574,1.96514,2543.2,2542.5,0.78626]
[1751473165773,0.78619,2542.8,2542.1,1.96599]
[1751473166076,0.7861,2543.1,2542.8,0.78617]
[1751473166280,3.44177,2543.5,2542.3,1.96584]
[1751473166575,45.003,2543.5,2543.4,0.78598]
[1751473166780,56.585,2543.6,2543.5,0.78596]
[1751473166982,45.006,2543.7,2543.2,1.9651]
[1751473167185,47.6983,2543.7,2543.6,0.78593]
[1751473167480,47.6983,2543.7,2543.2,1.96514]
[1751473167682,47.6983,2543.7,2543.6,0.78593]
[1751473167683,2.6923,2543.7,2543.6,0.78593]
[1751473167984,45.002,2543.8,2543.7,0.78589]
[1751473168178,45.001,2543.8,2543.7,0.78589]
[1751473168773,0.78583,2544.0,2543.8,0.78587]
[1751473168974,2.6081,2543.9,2543.8,0.78587]
[1751473169179,59.081,2544.2,2544.1,0.78577]
[1751473169575,59.078,2544.2,2544.1,0.78577]
[1751473169783,14.084,2544.2,2544.1,0.78577]
[1751473170081,59.077,2544.2,2544.1,0.78577]
[1751473170283,56.592,2544.4,2544.2,0.78573]
[1751473170482,101.582,2544.4,2544.3,0.78571]
[1751473170784,2.8069,2544.9,2544.6,0.78561]
[1751473170785,0.78555,2544.9,2544.6,0.78561]
[1751473170981,47.5971,2544.8,2544.1,1.9644]
[1751473171182,14.084,2545.2,2544.2,2.7561]
[1751473171382,0.7855,2545.0,2544.4,1.96421]
[1751473171688,16.7266,2545.2,2543.5,1.9649]
[1751473171689,10.99524237,2544.5,2543.5,1.9649]
[1751473171882,0.78572,2544.3,2543.5,1.9649]
[1751473172083,0.78572,2544.3,2543.9,0.78582]
[1751473172284,0.78574,2544.2,2543.9,0.78582]
[1751473172481,0.78574,2544.2,2543.8,0.78585]
[1751473172788,3.42829,2544.4,2544.0,0.78581]
[1751473172988,2.6426,2544.9,2543.7,1.96473]
[1751473173188,3.42814,2544.9,2544.6,0.7856]
[1751473173687,2.6426,2544.9,2544.2,1.96433]
[1751473173885,0.78559,2544.7,2544.1,2.5836]
[1751473174083,2.6426,2544.9,2544.3,0.78571]
[1751473174387,3.42814,2544.9,2544.6,0.7856]
[1751473174680,44.967,2544.8,2544.7,0.78559]
[1751473175188,14.86846,2545.2,2545.0,0.7855]
[1751473175383,16.6779,2545.3,2544.7,1.96398]
[1751473175583,45.74644,2545.2,2545.0,0.78548]
[1751473175782,44.961,2545.2,2544.7,2.714]
[1751473175979,2.5959,2545.2,2544.2,3.92873]
[1751473176184,44.954,2545.2,2544.5,2.714]
[1751473176388,44.954,2545.2,2545.1,0.78547]
[1751473176589,57.37839,2545.4,2545.2,0.78544]
[1751473176786,56.593,2545.4,2545.3,0.7854]
[1751473176985,101.543,2545.4,2545.3,0.7854]
[1751473177180,2.5959,2545.6,2545.1,1.96364]
[1751473177380,14.082,2545.7,2545.2,1.9636]
[1751473177580,0.78522,2545.9,2545.2,1.9636]
[1751473177780,44.945,2545.8,2545.7,0.78526]
[1751473178184,3.45391,2546.0,2545.8,0.78525]
[1751473178388,44.942,2545.9,2545.3,2.7523]
[1751473178587,0.78527,2545.8,2545.3,2.7523]
[1751473178788,48.39594,2545.9,2545.7,0.78528]
[1751473179092,48.39594,2545.9,2545.4,1.96344]
[1751473179288,0.78525,2545.8,2545.6,0.7853]
[1751473179688,48.39593,2545.9,2545.7,0.78527]
[1751473180093,0.78527,2545.8,2545.6,0.7853]
[1751473180390,3.45397,2545.8,2545.6,0.7853]
[1751473180591,2.6687,2545.8,2545.1,1.96364]
[1751473180892,44.942,2545.9,2545.7,0.78528]
[1751473181293,44.942,2545.9,2545.4,1.96344]
[1751473181588,44.942,2545.9,2545.8,0.78525]
[1751473181888,44.91,2546.4,2545.3,1.9635]
[1751473182289,0.7851,2546.3,2546.1,0.78514]
[1751473182796,3.43032,2546.3,2546.1,0.78515]
[1751473182993,20.60321237,2546.3,2545.4,1.96344]
[1751473183291,0.7853,2545.7,2545.4,0.78534]
[1751473183497,48.33152,2545.6,2545.4,0.78536]
[1751473183695,48.33152,2545.6,2545.3,0.78538]
[1751473183896,48.33152,2545.6,2545.1,1.96365]
[1751473183897,47.5462,2545.6,2545.5,0.78534]
[1751473184197,44.895,2545.6,2545.5,0.78534]
[1751473184592,0.78522,2545.9,2545.6,0.78529]
[1751473184791,45.67127,2545.8,2545.3,2.8374]
[1751473184994,0.78529,2545.7,2545.4,0.78537]
[1751473185195,3.38281,2545.7,2545.4,0.78537]
[1751473185693,3.3828,2545.7,2545.4,0.78535]
[1751473185889,2.5975,2545.7,2545.0,1.96375]
[1751473186089,2.5975,2545.7,2545.1,1.96367]
[1751473186293,3.3828,2545.7,2545.1,1.96367]
[1751473186493,0.78535,2545.5,2545.1,1.96367]
[1751473186891,2.5975,2545.7,2544.9,7.40241]
[1751473187097,2.5992,2545.4,2545.3,0.7854]
[1751473187600,0.78542,2545.3,2545.1,0.78545]
[1751473187797,2.5992,2545.2,2544.7,4.56438]
[1751473187995,4.56282,2545.2,2544.3,1.96429]
[1751473188195,0.78555,2544.9,2544.6,0.7856]
[1751473188392,47.4582,2544.8,2544.6,0.7856]
[1751473188598,47.4582,2544.8,2544.7,0.78559]
[1751473189798,1.96337,2545.5,2544.5,1.96412]
[1751473189993,2.7443,2545.4,2544.3,4.26760116]
[1751473190197,2.7443,2545.4,2545.3,0.7854]
[1751473190494,56.559,2546.0,2545.7,0.78527]
[1751473190692,44.841,2545.9,2545.8,0.78525]
[1751473190897,59.3033,2546.0,2545.9,0.78522]
[1751473191096,60.08851,2546.0,2545.7,0.78526]
[1751473191292,60.08851,2546.0,2545.8,0.78524]
[1751473191701,59.3033,2546.0,2545.9,0.78522]
[1751473192198,1.96247,2546.7,2545.5,4.74195]
[1751473192199,0.78509,2546.4,2546.1,0.78515]
[1751473192407,45.6171,2546.3,2545.5,4.74192]
[1751473192598,2.7443,2546.3,2546.1,0.78515]
[1751473192803,44.827,2546.2,2546.1,0.78515]
[1751473193005,44.827,2546.2,2545.5,4.74192]
[1751473193205,44.827,2546.1,2546.0,0.78517]
[1751473193406,3.70094,2546.2,2545.9,0.78519]
[1751473193595,44.821,2546.1,2545.2,2.8802]
[1751473193801,2.9158,2546.0,2545.8,0.78524]
[1751473194001,2.9158,2546.0,2545.2,4.84378]
[1751473194205,2.9158,2546.0,2545.2,4.84377]
[1751473194402,3.70101,2546.0,2545.7,0.78526]
[1751473194602,2.9158,2546.0,2545.7,0.78526]
[1751473194797,2.9158,2546.0,2545.5,1.96335]
[1751473194997,47.7268,2546.0,2545.4,1.9634]
[1751473195200,48.51201,2546.0,2545.7,0.78526]
[1751473195606,47.7268,2546.0,2545.5,1.96336]
[1751473195802,47.7268,2546.0,2545.9,0.78522]
[1751473196004,47.7268,2546.0,2545.6,0.78529]
[1751473196204,0.78526,2545.8,2545.6,0.78531]
[1751473196399,2.7491,2545.7,2545.6,0.78531]
[1751473196805,0.78514,2546.2,2545.9,0.7852]
[1751473197105,44.787,2546.1,2546.0,0.78519]
[1751473197303,44.787,2546.1,2545.4,1.96344]
[1751473197506,2.7491,2546.0,2545.0,1.96374]
[1751473197701,2.7491,2546.0,2544.9,1.96381]
[1751473197902,10.74739561,2546.0,2545.0,1.96374]
[1751473198103,0.78532,2545.6,2545.0,1.96374]
[1751473198404,7.99829561,2545.1,2544.5,1.52405116]
[1751473198605,7.99829561,2545.1,2544.5,0.03505]
[1751473198606,45.55852,2545.0,2544.5,0.03505]
[1751473198904,47.5221,2545.0,2544.5,1.52405116]
[1751473199104,47.5221,2545.0,2544.8,0.78555]
[1751473199809,47.5221,2545.0,2544.9,0.78553]
[1751473200011,47.5221,2545.0,2544.8,0.78554]
[1751473200210,47.5221,2545.0,2544.6,1.48900116]
[1751473200412,7.99829561,2544.7,2544.5,1.52405116]
[1751473200601,2.7028,2544.6,2544.5,0.03505]
[1751473200807,2.8972,2545.2,2544.6,1.96401]
[1751473201002,44.754,2545.1,2544.6,1.49387907]
[1751473201212,16.8818,2545.5,2544.8,1.49387907]
[1751473201412,2.7028,2545.4,2545.3,0.7854]
[1751473201710,58.767,2545.5,2545.4,0.78537]
[1751473201907,56.553,2545.7,2545.6,0.78531]
[1751473202111,56.558,2547.0,2545.5,7.99829561]
[1751473202314,3.62479,2546.7,2546.4,0.78505]
[1751473202508,3.62479,2546.7,2546.0,1.96296]
[1751473202509,44.739,2546.6,2546.0,1.96296]
[1751473202705,47.5788,2546.6,2545.9,1.96306]
[1751473202908,44.741,2546.5,2546.4,0.78505]
[1751473203105,52.5808,2546.5,2545.8,2.8539]
[1751473203308,7.99829561,2546.0,2545.9,0.7852]
[1751473203614,44.734,2546.1,2545.4,4.34777907]
[1751473203912,14.019,2546.3,2546.2,0.7851]
[1751473203913,44.734,2546.3,2546.2,0.7851]
[1751473204113,2.8398,2546.5,2545.8,1.96313]
[1751473204411,44.728,2546.3,2546.2,0.78511]
[1751473204617,2.8398,2546.5,2545.7,2.8539]
[1751473204808,7.99829561,2545.9,2545.3,4.40057907]
[1751473205011,0.78525,2545.8,2545.5,0.78533]
[1751473205213,2.7619,2545.8,2545.7,0.78528]
[1751473205414,2.7619,2545.8,2545.2,1.49387907]
[1751473205611,2.7619,2545.8,2545.3,1.96352]
[1751473205810,2.7619,2545.8,2545.6,0.78529]
[1751473206011,2.7619,2545.8,2545.3,1.96352]
[1751473206216,14.019,2546.0,2545.3,1.96352]
[1751473206217,22.80146561,2546.1,2545.8,0.78523]
[1751473206416,44.708,2546.0,2545.8,0.78523]
[1751473206614,47.4699,2546.0,2545.8,0.78523]
[1751473206912,0.78523,2545.9,2545.6,0.7853]
[1751473207116,7.99829561,2546.1,2545.3,1.49387907]
[1751473207318,2.7619,2546.0,2545.8,0.78522]
[1751473207713,2.7619,2546.0,2545.9,0.78522]
[1751473208013,44.697,2546.1,2546.0,0.78519]
[1751473208614,45.48216,2546.1,2545.8,0.78524]
[1751473208812,2.8477,2546.0,2545.3,3.45736907]
[1751473209210,0.78525,2545.9,2545.3,1.49387907]
[1751473209409,44.697,2546.1,2545.0,5.42133907]
[1751473209616,2.8477,2546.3,2545.6,1.96321]
[1751473209810,44.673,2546.2,2546.1,0.78514]
[1751473210012,47.01800525,2546.2,2546.1,0.78516]
[1751473210320,44.669,2546.2,2546.1,0.78516]
[1751473210522,47.01300525,2546.4,2546.3,0.7851]
[1751473210819,47.01100525,2546.5,2546.4,0.78507]
[1751473211020,2.34900525,2546.6,2546.5,0.78503]
[1751473211215,47.00700525,2546.6,2546.5,0.78503]
[1751473211817,2.34900525,2546.6,2546.5,0.78503]